Workbook

Sheet 1st Int
A1: Integral SW measurements | D1: Encoder value at 10 mm gap: | G1: 20.2847
A2: Background has been subtracted
A3: y pos in gap | B3: 0 | C3: mm | P3: 1 | Q3: 1 | R3: 2 | S3: 2 | T3: 3 | U3: 3 | V3: 4 | W3: 4
A4: Gap nominal | B4: 10 | C4: mm | D4: 15 | E4: mm | F4: 20 | G4: mm | H4: 30 | I4: mm | J4: 100 | K4: mm | O4: Gap | P4: Skew Int. | Q4: Norm. Int. | R4: Skew Grad. | S4: Normal Grad. | T4: Skew Sext. | U4: Normal Sext. | V4: Skew Oct. | W4: Normal Oct.
A5: Encoder | B5: ='DF raw data'!B30 -> 20.287 | D5: ='DF raw data'!G30 -> 25.2815 | F5: ='DF raw data'!L30 -> 30.2821 | H5: ='DF raw data'!Q30 -> 40.2896 | J5: ='DF raw data'!V30 -> 110.2834 | N5: 1 | O5: mm | P5: µTm | Q5: µTm | R5: mT | S5: mT | T5: Tm^2 | U5: Tm^2 | V5: Tm^3 | W5: Tm^3
A6: Gap actual | B6: =B5-$G$1+10 -> 10.0023 | C6: mm | D6: =D5-$G$1+10 -> 14.9968 | E6: mm | F6: =F5-$G$1+10 -> 19.9974 | G6: mm | H6: =H5-$G$1+10 -> 30.0049 | I6: mm | J6: =J5-$G$1+10 -> 99.9987 | K6: mm | N6: 2 | O6: =B4 -> 10 | P6: =INDEX($B$21:$K$24,P$3,$N5*2-1) -> 6.729033333 | Q6: =INDEX($B$21:$M$25,Q$3,$N5*2) -> 0.8706666667 | R6: =INDEX($B$21:$M$25,R$3,$N5*2-1) -> 1.570209457 | S6: =INDEX($B$21:$M$25,S$3,$N5*2) -> 0.7373256605 | T6: =INDEX($B$21:$M$25,T$3,$N5*2-1) -> -0.1055933951 | U6: =INDEX($B$21:$M$25,U$3,$N5*2) -> 0.1056547203 | V6: =INDEX($B$21:$M$25,V$3,$N5*2-1) -> -3.998888695 | W6: =INDEX($B$21:$M$25,W$3,$N5*2) -> -6.129637723
A7: x pos [m] | B7: Ix [µTm] | C7: Iy [µTm] | D7: Ix [µTm] | E7: Iy [µTm] | F7: Ix [µTm] | G7: Iy [µTm] | H7: Ix [µTm] | I7: Iy [µTm] | J7: Ix [µTm] | K7: Iy [µTm] | N7: 3 | O7: =D4 -> 15 | P7: =INDEX($B$21:$K$24,P$3,$N6*2-1) -> 6.6089 | Q7: =INDEX($B$21:$M$25,Q$3,$N6*2) -> 7.637333333 | R7: =INDEX($B$21:$M$25,R$3,$N6*2-1) -> 1.72257298 | S7: =INDEX($B$21:$M$25,S$3,$N6*2) -> 0.2111324786 | T7: =INDEX($B$21:$M$25,T$3,$N6*2-1) -> -0.04085381702 | U7: =INDEX($B$21:$M$25,U$3,$N6*2) -> 0.09833653846 | V7: =INDEX($B$21:$M$25,V$3,$N6*2-1) -> -0.7888888889 | W7: =INDEX($B$21:$M$25,W$3,$N6*2) -> 0.2482031857
A8: ='DF raw data'!A43/1000 -> -0.01 | B8: =('DF raw data'!B43-'DF raw data'!B$14*1000)*1000 -> -16.425 | C8: =('DF raw data'!C43-'DF raw data'!C$14*1000)*1000 -> 10.696 | D8: =('DF raw data'!G43-'DF raw data'!G$14*1000)*1000 -> -13.899 | E8: =('DF raw data'!H43-'DF raw data'!H$14*1000)*1000 -> 14.116 | F8: =('DF raw data'!L43-'DF raw data'!L$14*1000)*1000 -> -15.555 | G8: =('DF raw data'!M43-'DF raw data'!M$14*1000)*1000 -> 14.468 | H8: =('DF raw data'!Q43-'DF raw data'!Q$14*1000)*1000 -> -13.77 | I8: =('DF raw data'!R43-'DF raw data'!R$14*1000)*1000 -> 13.905 | J8: =('DF raw data'!V43-'DF raw data'!V$14*1000)*1000 -> -0.5892 | K8: =('DF raw data'!W43-'DF raw data'!W$14*1000)*1000 -> 6.124 | N8: 4 | O8: =F4 -> 20 | P8: =INDEX($B$21:$K$24,P$3,$N7*2-1) -> 3.819233333 | Q8: =INDEX($B$21:$M$25,Q$3,$N7*2) -> 10.081 | R8: =INDEX($B$21:$M$25,R$3,$N7*2-1) -> 2.0272088 | S8: =INDEX($B$21:$M$25,S$3,$N7*2) -> -0.1472017288 | T8: =INDEX($B$21:$M$25,T$3,$N7*2-1) -> -0.02585740093 | U8: =INDEX($B$21:$M$25,U$3,$N7*2) -> 0.08951952214 | V8: =INDEX($B$21:$M$25,V$3,$N7*2-1) -> -3.757094988 | W8: =INDEX($B$21:$M$25,W$3,$N7*2) -> 4.369342463
A9: ='DF raw data'!A44/1000 -> -0.008 | B9: =('DF raw data'!B44-'DF raw data'!B$14*1000)*1000 -> -3.452422 | C9: =('DF raw data'!C44-'DF raw data'!C$14*1000)*1000 -> 0.698 | D9: =('DF raw data'!G44-'DF raw data'!G$14*1000)*1000 -> -9.9524 | E9: =('DF raw data'!H44-'DF raw data'!H$14*1000)*1000 -> 13.692 | F9: =('DF raw data'!L44-'DF raw data'!L$14*1000)*1000 -> -13.637 | G9: =('DF raw data'!M44-'DF raw data'!M$14*1000)*1000 -> 15.063 | H9: =('DF raw data'!Q44-'DF raw data'!Q$14*1000)*1000 -> -14.577 | I9: =('DF raw data'!R44-'DF raw data'!R$14*1000)*1000 -> 16.236 | J9: =('DF raw data'!V44-'DF raw data'!V$14*1000)*1000 -> 6.86 | K9: =('DF raw data'!W44-'DF raw data'!W$14*1000)*1000 -> 8.245 | N9: 5 | O9: =H4 -> 30 | P9: =INDEX($B$21:$K$24,P$3,$N8*2-1) -> 1.115233333 | Q9: =INDEX($B$21:$M$25,Q$3,$N8*2) -> 12.899 | R9: =INDEX($B$21:$M$25,R$3,$N8*2-1) -> 2.377285927 | S9: =INDEX($B$21:$M$25,S$3,$N8*2) -> 0.3138138112 | T9: =INDEX($B$21:$M$25,T$3,$N8*2-1) -> -0.01049428904 | U9: =INDEX($B$21:$M$25,U$3,$N8*2) -> 0.03707138695 | V9: =INDEX($B$21:$M$25,V$3,$N8*2-1) -> -9.21291521 | W9: =INDEX($B$21:$M$25,W$3,$N8*2) -> -1.99847028
A10: ='DF raw data'!A45/1000 -> -0.006 | B10: =('DF raw data'!B45-'DF raw data'!B$14*1000)*1000 -> -0.7261 | C10: =('DF raw data'!C45-'DF raw data'!C$14*1000)*1000 -> -2.583 | D10: =('DF raw data'!G45-'DF raw data'!G$14*1000)*1000 -> -7.7392 | E10: =('DF raw data'!H45-'DF raw data'!H$14*1000)*1000 -> 9.311 | F10: =('DF raw data'!L45-'DF raw data'!L$14*1000)*1000 -> -10.1361 | G10: =('DF raw data'!M45-'DF raw data'!M$14*1000)*1000 -> 12.579 | H10: =('DF raw data'!Q45-'DF raw data'!Q$14*1000)*1000 -> -10.2468 | I10: =('DF raw data'!R45-'DF raw data'!R$14*1000)*1000 -> 11.752 | J10: =('DF raw data'!V45-'DF raw data'!V$14*1000)*1000 -> 1.8559 | K10: =('DF raw data'!W45-'DF raw data'!W$14*1000)*1000 -> 4.833 | N10: 6 | O10: =J4 -> 100 | P10: =INDEX($B$21:$K$24,P$3,$N9*2-1) -> 4.3497 | Q10: =INDEX($B$21:$M$25,Q$3,$N9*2) -> 4.247 | R10: =INDEX($B$21:$M$25,R$3,$N9*2-1) -> 0.1500760975 | S10: =INDEX($B$21:$M$25,S$3,$N9*2) -> -0.4625766317 | T10: =INDEX($B$21:$M$25,T$3,$N9*2-1) -> 0.02286585082 | U10: =INDEX($B$21:$M$25,U$3,$N9*2) -> 0.01460693473 | V10: =INDEX($B$21:$M$25,V$3,$N9*2-1) -> 3.795777486 | W10: =INDEX($B$21:$M$25,W$3,$N9*2) -> 4.073790793
A11: ='DF raw data'!A46/1000 -> -0.004 | B11: =('DF raw data'!B46-'DF raw data'!B$14*1000)*1000 -> 3.0707 | C11: =('DF raw data'!C46-'DF raw data'!C$14*1000)*1000 -> -0.9 | D11: =('DF raw data'!G46-'DF raw data'!G$14*1000)*1000 -> -1.1272 | E11: =('DF raw data'!H46-'DF raw data'!H$14*1000)*1000 -> 7.93 | F11: =('DF raw data'!L46-'DF raw data'!L$14*1000)*1000 -> -6.5566 | G11: =('DF raw data'!M46-'DF raw data'!M$14*1000)*1000 -> 8.745 | H11: =('DF raw data'!Q46-'DF raw data'!Q$14*1000)*1000 -> -7.5099 | I11: =('DF raw data'!R46-'DF raw data'!R$14*1000)*1000 -> 11.605 | J11: =('DF raw data'!V46-'DF raw data'!V$14*1000)*1000 -> 2.9531 | K11: =('DF raw data'!W46-'DF raw data'!W$14*1000)*1000 -> 7.322
A12: ='DF raw data'!A47/1000 -> -0.002 | B12: =('DF raw data'!B47-'DF raw data'!B$14*1000)*1000 -> -0.3669 | C12: =('DF raw data'!C47-'DF raw data'!C$14*1000)*1000 -> 1.643 | D12: =('DF raw data'!G47-'DF raw data'!G$14*1000)*1000 -> 2.2607 | E12: =('DF raw data'!H47-'DF raw data'!H$14*1000)*1000 -> 6.871 | F12: =('DF raw data'!L47-'DF raw data'!L$14*1000)*1000 -> 1.3167 | G12: =('DF raw data'!M47-'DF raw data'!M$14*1000)*1000 -> 11.895 | H12: =('DF raw data'!Q47-'DF raw data'!Q$14*1000)*1000 -> -4.8556 | I12: =('DF raw data'!R47-'DF raw data'!R$14*1000)*1000 -> 13.061 | J12: =('DF raw data'!V47-'DF raw data'!V$14*1000)*1000 -> 2.8799 | K12: =('DF raw data'!W47-'DF raw data'!W$14*1000)*1000 -> 7.225 | O12: Max 10-30mm | P12: =MAX(ABS(MAX(P6:P9)),ABS(MIN(P6:P9))) -> 6.729033333 | Q12: =MAX(ABS(MAX(Q6:Q9)),ABS(MIN(Q6:Q9))) -> 12.899 | R12: =MAX(ABS(MAX(R6:R9)),ABS(MIN(R6:R9))) -> 2.377285927 | S12: 0.7373256605 | T12: 0.1055933951 | U12: 0.1056547203 | V12: 9.21291521 | W12: 6.129637723
A13: ='DF raw data'!A48/1000 -> 0 | B13: =('DF raw data'!B48-'DF raw data'!B$14*1000)*1000 -> 7.615 | C13: =('DF raw data'!C48-'DF raw data'!C$14*1000)*1000 -> -0.56 | D13: =('DF raw data'!G48-'DF raw data'!G$14*1000)*1000 -> 5.908 | E13: =('DF raw data'!H48-'DF raw data'!H$14*1000)*1000 -> 6.361 | F13: =('DF raw data'!L48-'DF raw data'!L$14*1000)*1000 -> 3.489 | G13: =('DF raw data'!M48-'DF raw data'!M$14*1000)*1000 -> 6.597 | H13: =('DF raw data'!Q48-'DF raw data'!Q$14*1000)*1000 -> 1.3753 | I13: =('DF raw data'!R48-'DF raw data'!R$14*1000)*1000 -> 11.02 | J13: =('DF raw data'!V48-'DF raw data'!V$14*1000)*1000 -> 4.6259 | K13: =('DF raw data'!W48-'DF raw data'!W$14*1000)*1000 -> 2.333 | O13: Max change 10-30mm | P13: =MAX(P6:P9)-MIN(P6:P9) -> 5.6138 | Q13: =MAX(Q6:Q9)-MIN(Q6:Q9) -> 12.02833333
A14: ='DF raw data'!A49/1000 -> 0.002 | B14: =('DF raw data'!B49-'DF raw data'!B$14*1000)*1000 -> 12.939 | C14: =('DF raw data'!C49-'DF raw data'!C$14*1000)*1000 -> 1.529 | D14: =('DF raw data'!G49-'DF raw data'!G$14*1000)*1000 -> 11.658 | E14: =('DF raw data'!H49-'DF raw data'!H$14*1000)*1000 -> 9.68 | F14: =('DF raw data'!L49-'DF raw data'!L$14*1000)*1000 -> 6.652 | G14: =('DF raw data'!M49-'DF raw data'!M$14*1000)*1000 -> 11.751 | H14: =('DF raw data'!Q49-'DF raw data'!Q$14*1000)*1000 -> 6.826 | I14: =('DF raw data'!R49-'DF raw data'!R$14*1000)*1000 -> 14.616 | J14: =('DF raw data'!V49-'DF raw data'!V$14*1000)*1000 -> 5.5433 | K14: =('DF raw data'!W49-'DF raw data'!W$14*1000)*1000 -> 3.183
A15: ='DF raw data'!A50/1000 -> 0.004 | B15: =('DF raw data'!B50-'DF raw data'!B$14*1000)*1000 -> 15.225 | C15: =('DF raw data'!C50-'DF raw data'!C$14*1000)*1000 -> 1.365 | D15: =('DF raw data'!G50-'DF raw data'!G$14*1000)*1000 -> 12.401 | E15: =('DF raw data'!H50-'DF raw data'!H$14*1000)*1000 -> 11.414 | F15: =('DF raw data'!L50-'DF raw data'!L$14*1000)*1000 -> 8.454 | G15: =('DF raw data'!M50-'DF raw data'!M$14*1000)*1000 -> 9.042 | H15: =('DF raw data'!Q50-'DF raw data'!Q$14*1000)*1000 -> 12.011 | I15: =('DF raw data'!R50-'DF raw data'!R$14*1000)*1000 -> 12.946 | J15: =('DF raw data'!V50-'DF raw data'!V$14*1000)*1000 -> 6.634 | K15: =('DF raw data'!W50-'DF raw data'!W$14*1000)*1000 -> 3.771 | O15: Imax Limit (±): | P15: 20 | Q15: 20
A16: ='DF raw data'!A51/1000 -> 0.006 | B16: =('DF raw data'!B51-'DF raw data'!B$14*1000)*1000 -> 15.36 | C16: =('DF raw data'!C51-'DF raw data'!C$14*1000)*1000 -> 5.864 | D16: =('DF raw data'!G51-'DF raw data'!G$14*1000)*1000 -> 14.072 | E16: =('DF raw data'!H51-'DF raw data'!H$14*1000)*1000 -> 10.302 | F16: =('DF raw data'!L51-'DF raw data'!L$14*1000)*1000 -> 13.349 | G16: =('DF raw data'!M51-'DF raw data'!M$14*1000)*1000 -> 11.552 | H16: =('DF raw data'!Q51-'DF raw data'!Q$14*1000)*1000 -> 13.231 | I16: =('DF raw data'!R51-'DF raw data'!R$14*1000)*1000 -> 16.256 | J16: =('DF raw data'!V51-'DF raw data'!V$14*1000)*1000 -> 5.3201 | K16: =('DF raw data'!W51-'DF raw data'!W$14*1000)*1000 -> 3.306 | O16: Limits (±): | P16: 20 | Q16: =P16 -> 20
A17: ='DF raw data'!A52/1000 -> 0.008 | B17: =('DF raw data'!B52-'DF raw data'!B$14*1000)*1000 -> 14.1 | C17: =('DF raw data'!C52-'DF raw data'!C$14*1000)*1000 -> 8.523 | D17: =('DF raw data'!G52-'DF raw data'!G$14*1000)*1000 -> 13.323 | E17: =('DF raw data'!H52-'DF raw data'!H$14*1000)*1000 -> 16.16 | F17: =('DF raw data'!L52-'DF raw data'!L$14*1000)*1000 -> 16.565 | G17: =('DF raw data'!M52-'DF raw data'!M$14*1000)*1000 -> 17.395 | H17: =('DF raw data'!Q52-'DF raw data'!Q$14*1000)*1000 -> 11.943 | I17: =('DF raw data'!R52-'DF raw data'!R$14*1000)*1000 -> 17.92 | J17: =('DF raw data'!V52-'DF raw data'!V$14*1000)*1000 -> 9.455 | K17: =('DF raw data'!W52-'DF raw data'!W$14*1000)*1000 -> 3.935 | O17: ΔI Limits (±): | P17: 15 | Q17: =P17 -> 15
A18: ='DF raw data'!A53/1000 -> 0.01 | B18: =('DF raw data'!B53-'DF raw data'!B$14*1000)*1000 -> 8.92 | C18: =('DF raw data'!C53-'DF raw data'!C$14*1000)*1000 -> 11.724 | D18: =('DF raw data'!G53-'DF raw data'!G$14*1000)*1000 -> 20.425 | E18: =('DF raw data'!H53-'DF raw data'!H$14*1000)*1000 -> 19.659 | F18: =('DF raw data'!L53-'DF raw data'!L$14*1000)*1000 -> 16.548 | G18: =('DF raw data'!M53-'DF raw data'!M$14*1000)*1000 -> 20.34 | H18: =('DF raw data'!Q53-'DF raw data'!Q$14*1000)*1000 -> 16.521 | I18: =('DF raw data'!R53-'DF raw data'!R$14*1000)*1000 -> 16.555 | J18: =('DF raw data'!V53-'DF raw data'!V$14*1000)*1000 -> 11.746 | K18: =('DF raw data'!W53-'DF raw data'!W$14*1000)*1000 -> 5.126
A19: DF indice | B19: ='DF raw data'!B8 -> 28 | D19: ='DF raw data'!L8 -> 30 | F19: ='DF raw data'!L8 -> 30 | H19: ='DF raw data'!Q8 -> 31 | J19: ='DF raw data'!V8 -> 32
A21: Average dipole [µTm] | B21: =AVERAGE(B12:B14) -> 6.729033333 | C21: =AVERAGE(C12:C14) -> 0.8706666667 | D21: =AVERAGE(D12:D14) -> 6.6089 | E21: 7.637333333 | F21: 3.819233333 | G21: 10.081 | H21: 1.115233333 | I21: 12.899 | J21: 4.3497 | K21: 4.247 | N21: Center dipole values: average of 3 points x = -2 to x = 2mm
A22: Gradient [mT] | B22: =INDEX(LINEST(B$8:B$18,$A$8:$A$18^{1,2,3},TRUE,TRUE),1,3)/1000 -> 1.570209457 | C22: =INDEX(LINEST(C$8:C$18,$A$8:$A$18^{1,2,3},TRUE,TRUE),1,3)/1000 -> 0.7373256605 | D22: =INDEX(LINEST(D$8:D$18,$A$8:$A$18^{1,2,3},TRUE,TRUE),1,3)/1000 -> 1.72257298 | E22: =INDEX(LINEST(E$8:E$18,$A$8:$A$18^{1,2,3},TRUE,TRUE),1,3)/1000 -> 0.2111324786 | F22: =INDEX(LINEST(F$8:F$18,$A$8:$A$18^{1,2,3},TRUE,TRUE),1,3)/1000 -> 2.0272088 | G22: =INDEX(LINEST(G$8:G$18,$A$8:$A$18^{1,2,3},TRUE,TRUE),1,3)/1000 -> -0.1472017288 | H22: =INDEX(LINEST(H$8:H$18,$A$8:$A$18^{1,2,3},TRUE,TRUE),1,3)/1000 -> 2.377285927 | I22: =INDEX(LINEST(I$8:I$18,$A$8:$A$18^{1,2,3},TRUE,TRUE),1,3)/1000 -> 0.3138138112 | J22: =INDEX(LINEST(J$8:J$18,$A$8:$A$18^{1,2,3},TRUE,TRUE),1,3)/1000 -> 0.1500760975 | K22: =INDEX(LINEST(K$8:K$18,$A$8:$A$18^{1,2,3},TRUE,TRUE),1,3)/1000 -> -0.4625766317
A23: Sextupole [Tm^2] | B23: =INDEX(LINEST(B$8:B$18,$A$8:$A$18^{1,2,3},TRUE,TRUE),1,2)/1000000 -> -0.1055933951 | C23: =INDEX(LINEST(C$8:C$18,$A$8:$A$18^{1,2,3},TRUE,TRUE),1,2)/1000000 -> 0.1056547203 | D23: =INDEX(LINEST(D$8:D$18,$A$8:$A$18^{1,2,3},TRUE,TRUE),1,2)/1000000 -> -0.04085381702 | E23: =INDEX(LINEST(E$8:E$18,$A$8:$A$18^{1,2,3},TRUE,TRUE),1,2)/1000000 -> 0.09833653846 | F23: =INDEX(LINEST(F$8:F$18,$A$8:$A$18^{1,2,3},TRUE,TRUE),1,2)/1000000 -> -0.02585740093 | G23: =INDEX(LINEST(G$8:G$18,$A$8:$A$18^{1,2,3},TRUE,TRUE),1,2)/1000000 -> 0.08951952214 | H23: =INDEX(LINEST(H$8:H$18,$A$8:$A$18^{1,2,3},TRUE,TRUE),1,2)/1000000 -> -0.01049428904 | I23: =INDEX(LINEST(I$8:I$18,$A$8:$A$18^{1,2,3},TRUE,TRUE),1,2)/1000000 -> 0.03707138695 | J23: =INDEX(LINEST(J$8:J$18,$A$8:$A$18^{1,2,3},TRUE,TRUE),1,2)/1000000 -> 0.02286585082 | K23: =INDEX(LINEST(K$8:K$18,$A$8:$A$18^{1,2,3},TRUE,TRUE),1,2)/1000000 -> 0.01460693473
A24: Octupole [Tm^3] | B24: =INDEX(LINEST(B$8:B$18,$A$8:$A$18^{1,2,3},TRUE,TRUE),1,1)/1000000 -> -3.998888695 | C24: =INDEX(LINEST(C$8:C$18,$A$8:$A$18^{1,2,3},TRUE,TRUE),1,1)/1000000 -> -6.129637723 | D24: =INDEX(LINEST(D$8:D$18,$A$8:$A$18^{1,2,3},TRUE,TRUE),1,1)/1000000 -> -0.7888888889 | E24: =INDEX(LINEST(E$8:E$18,$A$8:$A$18^{1,2,3},TRUE,TRUE),1,1)/1000000 -> 0.2482031857 | F24: =INDEX(LINEST(F$8:F$18,$A$8:$A$18^{1,2,3},TRUE,TRUE),1,1)/1000000 -> -3.757094988 | G24: =INDEX(LINEST(G$8:G$18,$A$8:$A$18^{1,2,3},TRUE,TRUE),1,1)/1000000 -> 4.369342463 | H24: =INDEX(LINEST(H$8:H$18,$A$8:$A$18^{1,2,3},TRUE,TRUE),1,1)/1000000 -> -9.21291521 | I24: =INDEX(LINEST(I$8:I$18,$A$8:$A$18^{1,2,3},TRUE,TRUE),1,1)/1000000 -> -1.99847028 | J24: =INDEX(LINEST(J$8:J$18,$A$8:$A$18^{1,2,3},TRUE,TRUE),1,1)/1000000 -> 3.795777486 | K24: =INDEX(LINEST(K$8:K$18,$A$8:$A$18^{1,2,3},TRUE,TRUE),1,1)/1000000 -> 4.073790793

Sheet 2nd Int
A1: 2nd Integral SW measurements
A2: Background has been subtracted | O2: Center values: average of 3 points x = -2 to x = 2
A3: y pos | B3: ='1st Int'!B3 -> 0 | C3: mm
A4: Gap nominal | B4: ='1st Int'!B4 -> 10 | C4: mm | D4: ='1st Int'!D4 -> 15 | E4: mm | F4: ='1st Int'!F4 -> 20 | G4: mm | H4: ='1st Int'!H4 -> 30 | I4: mm | J4: ='1st Int'!J4 -> 100 | K4: mm | O4: Gap | P4: Skew 2. Int. | Q4: Norm. 2. Int.
A5: Encoder | B5: ='1st Int'!B5 -> 20.287 | D5: ='1st Int'!D5 -> 25.2815 | F5: ='1st Int'!F5 -> 30.2821 | H5: ='1st Int'!H5 -> 40.2896 | J5: ='1st Int'!J5 -> 110.2834 | O5: mm | P5: µTm^2 | Q5: µTm^2
A6: Gap actual | B6: =B5-'1st Int'!$G$1+10 -> 10.0023 | C6: mm | D6: =D5-'1st Int'!$G$1+10 -> 14.9968 | E6: mm | F6: =F5-'1st Int'!$G$1+10 -> 19.9974 | G6: mm | H6: =H5-'1st Int'!$G$1+10 -> 30.0049 | I6: mm | J6: =J5-'1st Int'!$G$1+10 -> 99.9987 | K6: mm | O6: =B4 -> 10 | P6: =B22 -> 6.8694 | Q6: =C22 -> -0.4866666667
A7: ='1st Int'!A7 -> x pos [m] | B7: Jx [muTm^2] | C7: Jy [muTm^2] | D7: Jx [muTm^2] | E7: Jy [muTm^2] | F7: Jx [muTm^2] | G7: Jy [muTm^2] | H7: Jx [muTm^2] | I7: Jy [muTm^2] | J7: Jx [muTm^2] | K7: Jy [muTm^2] | O7: =D4 -> 15 | P7: =D22 -> 3.984333333 | Q7: =E22 -> 10.61933333
A8: ='DF raw data'!A43/1000 -> -0.01 | B8: =('DF raw data'!D43-'DF raw data'!D$14*1000^2) -> -29.3565 | C8: =('DF raw data'!E43-'DF raw data'!E$14*1000^2) -> 2.22 | D8: =('DF raw data'!I43-'DF raw data'!I$14*1000^2) -> -25.0205 | E8: =('DF raw data'!J43-'DF raw data'!J$14*1000^2) -> 11.918 | F8: =('DF raw data'!N43-'DF raw data'!N$14*1000^2) -> -31.2355 | G8: =('DF raw data'!O43-'DF raw data'!O$14*1000^2) -> 14.441 | H8: =('DF raw data'!S43-'DF raw data'!S$14*1000^2) -> -21.3295 | I8: =('DF raw data'!T43-'DF raw data'!T$14*1000^2) -> 17.374 | J8: =('DF raw data'!X43-'DF raw data'!X$14*1000^2) -> -2.7255 | K8: =('DF raw data'!Y43-'DF raw data'!Y$14*1000^2) -> 5.149 | O8: =F4 -> 20 | P8: =F22 -> 0.1792 | Q8: =G22 -> 14.772
A9: ='DF raw data'!A44/1000 -> -0.008 | B9: =('DF raw data'!D44-'DF raw data'!D$14*1000^2) -> -3.5754 | C9: =('DF raw data'!E44-'DF raw data'!E$14*1000^2) -> -8.43 | D9: =('DF raw data'!I44-'DF raw data'!I$14*1000^2) -> -17.0225 | E9: =('DF raw data'!J44-'DF raw data'!J$14*1000^2) -> 10.671 | F9: =('DF raw data'!N44-'DF raw data'!N$14*1000^2) -> -21.9125 | G9: =('DF raw data'!O44-'DF raw data'!O$14*1000^2) -> 19.193 | H9: =('DF raw data'!S44-'DF raw data'!S$14*1000^2) -> -22.5985 | I9: =('DF raw data'!T44-'DF raw data'!T$14*1000^2) -> 20.578 | J9: =('DF raw data'!X44-'DF raw data'!X$14*1000^2) -> 11.5615 | K9: =('DF raw data'!Y44-'DF raw data'!Y$14*1000^2) -> 18.008 | O9: =H4 -> 30 | P9: =H22 -> -2.5838 | Q9: =I22 -> 18.15833333
A10: ='DF raw data'!A45/1000 -> -0.006 | B10: =('DF raw data'!D45-'DF raw data'!D$14*1000^2) -> -5.06815 | C10: =('DF raw data'!E45-'DF raw data'!E$14*1000^2) -> -12.243 | D10: =('DF raw data'!I45-'DF raw data'!I$14*1000^2) -> -13.5233 | E10: =('DF raw data'!J45-'DF raw data'!J$14*1000^2) -> 7.48 | F10: =('DF raw data'!N45-'DF raw data'!N$14*1000^2) -> -21.0835 | G10: =('DF raw data'!O45-'DF raw data'!O$14*1000^2) -> 14.196 | H10: =('DF raw data'!S45-'DF raw data'!S$14*1000^2) -> -16.5565 | I10: =('DF raw data'!T45-'DF raw data'!T$14*1000^2) -> 12.861 | J10: =('DF raw data'!X45-'DF raw data'!X$14*1000^2) -> -2.1277 | K10: =('DF raw data'!Y45-'DF raw data'!Y$14*1000^2) -> 10.199 | O10: =J4 -> 100 | P10: =J22 -> 4.295266667 | Q10: =K22 -> 10.95366667
A11: ='DF raw data'!A46/1000 -> -0.004 | B11: =('DF raw data'!D46-'DF raw data'!D$14*1000^2) -> -4.72272 | C11: =('DF raw data'!E46-'DF raw data'!E$14*1000^2) -> -10.925 | D11: =('DF raw data'!I46-'DF raw data'!I$14*1000^2) -> -5.55937 | E11: =('DF raw data'!J46-'DF raw data'!J$14*1000^2) -> 7.587 | F11: =('DF raw data'!N46-'DF raw data'!N$14*1000^2) -> -17.1295 | G11: =('DF raw data'!O46-'DF raw data'!O$14*1000^2) -> 18.441 | H11: =('DF raw data'!S46-'DF raw data'!S$14*1000^2) -> -17.8555 | I11: =('DF raw data'!T46-'DF raw data'!T$14*1000^2) -> 16.4 | J11: =('DF raw data'!X46-'DF raw data'!X$14*1000^2) -> 1.6084 | K11: =('DF raw data'!Y46-'DF raw data'!Y$14*1000^2) -> 17.676 | O11: 10-30 | P11: =MAX(ABS(MAX(P6:P9)),ABS(MIN(P6:P9))) -> 6.8694 | Q11: =MAX(ABS(MAX(Q6:Q9)),ABS(MIN(Q6:Q9))) -> 18.15833333
A12: ='DF raw data'!A47/1000 -> -0.002 | B12: =('DF raw data'!D47-'DF raw data'!D$14*1000^2) -> -2.5668 | C12: =('DF raw data'!E47-'DF raw data'!E$14*1000^2) -> -5.513 | D12: =('DF raw data'!I47-'DF raw data'!I$14*1000^2) -> -0.3615 | E12: =('DF raw data'!J47-'DF raw data'!J$14*1000^2) -> 9.778 | F12: =('DF raw data'!N47-'DF raw data'!N$14*1000^2) -> -3.0218 | G12: =('DF raw data'!O47-'DF raw data'!O$14*1000^2) -> 17.812 | H12: =('DF raw data'!S47-'DF raw data'!S$14*1000^2) -> -10.5682 | I12: =('DF raw data'!T47-'DF raw data'!T$14*1000^2) -> 16.305 | J12: =('DF raw data'!X47-'DF raw data'!X$14*1000^2) -> 2.7887 | K12: =('DF raw data'!Y47-'DF raw data'!Y$14*1000^2) -> 13.958 | O12: Limits (±): | P12: 60 | Q12: 60
A13: ='DF raw data'!A48/1000 -> 0 | B13: =('DF raw data'!D48-'DF raw data'!D$14*1000^2) -> 9.2825 | C13: =('DF raw data'!E48-'DF raw data'!E$14*1000^2) -> 0.345 | D13: =('DF raw data'!I48-'DF raw data'!I$14*1000^2) -> 2.316 | E13: =('DF raw data'!J48-'DF raw data'!J$14*1000^2) -> 8.894 | F13: =('DF raw data'!N48-'DF raw data'!N$14*1000^2) -> 2.6627 | G13: =('DF raw data'!O48-'DF raw data'!O$14*1000^2) -> 9.484 | H13: =('DF raw data'!S48-'DF raw data'!S$14*1000^2) -> -0.7983 | I13: =('DF raw data'!T48-'DF raw data'!T$14*1000^2) -> 15.142 | J13: =('DF raw data'!X48-'DF raw data'!X$14*1000^2) -> 5.7495 | K13: =('DF raw data'!Y48-'DF raw data'!Y$14*1000^2) -> 8.896
A14: ='DF raw data'!A49/1000 -> 0.002 | B14: =('DF raw data'!D49-'DF raw data'!D$14*1000^2) -> 13.8925 | C14: =('DF raw data'!E49-'DF raw data'!E$14*1000^2) -> 3.708 | D14: =('DF raw data'!I49-'DF raw data'!I$14*1000^2) -> 9.9985 | E14: =('DF raw data'!J49-'DF raw data'!J$14*1000^2) -> 13.186 | F14: =('DF raw data'!N49-'DF raw data'!N$14*1000^2) -> 0.8967 | G14: =('DF raw data'!O49-'DF raw data'!O$14*1000^2) -> 17.02 | H14: =('DF raw data'!S49-'DF raw data'!S$14*1000^2) -> 3.6151 | I14: =('DF raw data'!T49-'DF raw data'!T$14*1000^2) -> 23.028 | J14: =('DF raw data'!X49-'DF raw data'!X$14*1000^2) -> 4.3476 | K14: =('DF raw data'!Y49-'DF raw data'!Y$14*1000^2) -> 10.007
A15: ='DF raw data'!A50/1000 -> 0.004 | B15: =('DF raw data'!D50-'DF raw data'!D$14*1000^2) -> 13.7545 | C15: =('DF raw data'!E50-'DF raw data'!E$14*1000^2) -> -1.433 | D15: =('DF raw data'!I50-'DF raw data'!I$14*1000^2) -> 9.2985 | E15: =('DF raw data'!J50-'DF raw data'!J$14*1000^2) -> 16.117 | F15: =('DF raw data'!N50-'DF raw data'!N$14*1000^2) -> 4.7059 | G15: =('DF raw data'!O50-'DF raw data'!O$14*1000^2) -> 10.959 | H15: =('DF raw data'!S50-'DF raw data'!S$14*1000^2) -> 12.1195 | I15: =('DF raw data'!T50-'DF raw data'!T$14*1000^2) -> 24.648 | J15: =('DF raw data'!X50-'DF raw data'!X$14*1000^2) -> 6.0045 | K15: =('DF raw data'!Y50-'DF raw data'!Y$14*1000^2) -> 12.387
A16: ='DF raw data'!A51/1000 -> 0.006 | B16: =('DF raw data'!D51-'DF raw data'!D$14*1000^2) -> 16.1635 | C16: =('DF raw data'!E51-'DF raw data'!E$14*1000^2) -> 7.203 | D16: =('DF raw data'!I51-'DF raw data'!I$14*1000^2) -> 6.9045 | E16: =('DF raw data'!J51-'DF raw data'!J$14*1000^2) -> 14.196 | F16: =('DF raw data'!N51-'DF raw data'!N$14*1000^2) -> 7.0535 | G16: =('DF raw data'!O51-'DF raw data'!O$14*1000^2) -> 19.03 | H16: =('DF raw data'!S51-'DF raw data'!S$14*1000^2) -> 12.7445 | I16: =('DF raw data'!T51-'DF raw data'!T$14*1000^2) -> 31.617 | J16: =('DF raw data'!X51-'DF raw data'!X$14*1000^2) -> 9.2635 | K16: =('DF raw data'!Y51-'DF raw data'!Y$14*1000^2) -> 11.505
A17: ='DF raw data'!A52/1000 -> 0.008 | B17: =('DF raw data'!D52-'DF raw data'!D$14*1000^2) -> 1.2641 | C17: =('DF raw data'!E52-'DF raw data'!E$14*1000^2) -> 6.175 | D17: =('DF raw data'!I52-'DF raw data'!I$14*1000^2) -> 3.3307 | E17: =('DF raw data'!J52-'DF raw data'!J$14*1000^2) -> 28.851 | F17: =('DF raw data'!N52-'DF raw data'!N$14*1000^2) -> 12.3805 | G17: =('DF raw data'!O52-'DF raw data'!O$14*1000^2) -> 25.905 | H17: =('DF raw data'!S52-'DF raw data'!S$14*1000^2) -> 13.1735 | I17: =('DF raw data'!T52-'DF raw data'!T$14*1000^2) -> 32.688 | J17: =('DF raw data'!X52-'DF raw data'!X$14*1000^2) -> 9.2265 | K17: =('DF raw data'!Y52-'DF raw data'!Y$14*1000^2) -> 13.723
A18: ='DF raw data'!A53/1000 -> 0.01 | B18: =('DF raw data'!D53-'DF raw data'!D$14*1000^2) -> -4.83232 | C18: =('DF raw data'!E53-'DF raw data'!E$14*1000^2) -> 16.871 | D18: =('DF raw data'!I53-'DF raw data'!I$14*1000^2) -> 18.4905 | E18: =('DF raw data'!J53-'DF raw data'!J$14*1000^2) -> 31.614 | F18: =('DF raw data'!N53-'DF raw data'!N$14*1000^2) -> 10.1545 | G18: =('DF raw data'!O53-'DF raw data'!O$14*1000^2) -> 34.474 | H18: =('DF raw data'!S53-'DF raw data'!S$14*1000^2) -> 16.9495 | I18: =('DF raw data'!T53-'DF raw data'!T$14*1000^2) -> 32.974 | J18: =('DF raw data'!X53-'DF raw data'!X$14*1000^2) -> 15.9285 | K18: =('DF raw data'!Y53-'DF raw data'!Y$14*1000^2) -> 23.442
A20: DF indice | B20: ='DF raw data'!B8 -> 28 | D20: ='DF raw data'!G8 -> 29 | F20: ='DF raw data'!L8 -> 30 | H20: ='DF raw data'!Q8 -> 31 | J20: ='DF raw data'!V8 -> 32
A22: Average | B22: =AVERAGE(B12:B14) -> 6.8694 | C22: =AVERAGE(C12:C14) -> -0.4866666667 | D22: 3.984333333 | E22: 10.61933333 | F22: 0.1792 | G22: 14.772 | H22: -2.5838 | I22: 18.15833333 | J22: 4.295266667 | K22: 10.95366667

Sheet DF raw data
A1: Number of header lines | B1: 30 | F1: Number of header lines | G1: 30 | K1: Number of header lines | L1: 31 | P1: Number of header lines | Q1: 30 | U1: Number of header lines | V1: 30
A2: Measured by | B2: Danfysik | F2: Measured by | G2: Danfysik | K2: Measured by | L2: Danfysik | P2: Measured by | Q2: Danfysik | U2: Measured by | V2: Danfysik
A3: Operator | B3: PMHA | F3: Operator | G3: PMHA | K3: Operator | L3: PMHA | P3: Operator | Q3: PMHA | U3: Operator | V3: PMHA
A4: Data-time | B4: 23-07-2024, 09:05:45 | F4: Data-time | G4: 23-07-2024, 09:45:49 | K4: Data-time | L4: 23-07-2024, 10:06:03 | P4: Data-time | Q4: 23-07-2024, 11:02:15 | U4: Data-time | V4: 23-07-2024, 11:23:19
A5: Project | B5: 504313 | F5: Project | G5: 504313 | K5: Project | L5: 504313 | P5: Project | Q5: 504313 | U5: Project | V5: 504313
A6: Magnet type | B6: Dipole | F6: Magnet type | G6: Dipole | K6: Magnet type | L6: Dipole | P6: Magnet type | Q6: Dipole | U6: Magnet type | V6: Dipole
A7: Magnet nr | B7: 2410083 | F7: Magnet nr | G7: 2410083 | K7: Magnet nr | L7: 2410083 | P7: Magnet nr | Q7: 2410083 | U7: Magnet nr | V7: 2410083
A8: Meas. number | B8: 28 | F8: Meas. number | G8: 29 | K8: Meas. number | L8: 30 | P8: Meas. number | Q8: 31 | U8: Meas. number | V8: 32
A9: Add. info | F9: Add. info | K9: Add. info | P9: Add. info | U9: Add. info
A10: Device | B10: (SWI) STRECHED-WIRE INTEGRAL | F10: Device | G10: (SWI) STRECHED-WIRE INTEGRAL | K10: Device | L10: (SWI) STRECHED-WIRE INTEGRAL | P10: Device | Q10: (SWI) STRECHED-WIRE INTEGRAL | U10: Device | V10: (SWI) STRECHED-WIRE INTEGRAL
A11: Measurement type | B11: (HSI) HORIZONTAL SECOND INTEGRAL LINESCAN | F11: Measurement type | G11: (HSI) HORIZONTAL SECOND INTEGRAL LINESCAN | K11: Measurement type | L11: (HSI) HORIZONTAL SECOND INTEGRAL LINESCAN | P11: Measurement type | Q11: (HSI) HORIZONTAL SECOND INTEGRAL LINESCAN | U11: Measurement type | V11: (HSI) HORIZONTAL SECOND INTEGRAL LINESCAN
A12: PSMODE | B12: (DUM) Magnet power supply not defined | F12: PSMODE | G12: (DUM) Magnet power supply not defined | K12: PSMODE | L12: (DUM) Magnet power supply not defined | P12: PSMODE | Q12: (DUM) Magnet power supply not defined | U12: PSMODE | V12: (DUM) Magnet power supply not defined
A13: Bench ID | B13: ID Tower SW | F13: Bench ID | G13: ID Tower SW | K13: Bench ID | L13: ID Tower SW | P13: Bench ID | Q13: ID Tower SW | U13: Bench ID | V13: ID Tower SW
A14: Background X & Y [Tm] | B14: 3.515e-06 | C14: -5.5879e-05 | D14: =0.00052335/100 -> 5.2335e-06 | E14: =-0.0067613/100 -> -6.7613e-05 | F14: Background X & Y [Tm] | G14: 3.515e-06 | H14: -5.5879e-05 | I14: =0.00052335/100 -> 5.2335e-06 | J14: =-0.0067613/100 -> -6.7613e-05 | K14: Background X & Y [Tm] | L14: 3.515e-06 | M14: -5.5879e-05 | N14: =0.00052335/100 -> 5.2335e-06 | O14: =-0.0067613/100 -> -6.7613e-05 | P14: Background Ix, Iy [Tm], Jx, Jy [Tm^2] | Q14: 3.515e-06 | R14: -5.5879e-05 | S14: =0.00052335/100 -> 5.2335e-06 | T14: =-0.0067613/100 -> -6.7613e-05 | U14: Background Ix, Iy [Tm], Jx, Jy [Tm^2] | V14: 3.515e-06 | W14: -5.5879e-05 | X14: =0.00052335/100 -> 5.2335e-06 | Y14: =-0.0067613/100 -> -6.7613e-05
A15: Background date | B15: 22-07-2024, 10:48:31 | F15: Background date | G15: 22-07-2024, 10:48:31 | K15: Background date | L15: 22-07-2024, 10:48:31 | P15: Background date | Q15: 22-07-2024, 10:48:31 | U15: Background date | V15: 22-07-2024, 10:48:31
A16: DATA | B16: Raw data text file | F16: DATA | G16: Raw data text file | K16: DATA | L16: Raw data text file | P16: DATA | Q16: Raw data text file | U16: DATA | V16: Raw data text file
A17: Number of repetitions | B17: 8 | F17: Number of repetitions | G17: 8 | K17: Number of repetitions | L17: 8 | P17: Number of repetitions | Q17: 8 | U17: Number of repetitions | V17: 8
A18: Number of scans | B18: 1 | F18: Number of scans | G18: 1 | K18: Number of scans | L18: 1 | P18: Number of scans | Q18: 1 | U18: Number of scans | V18: 1
A19: Number of data points | B19: 11 | F19: Number of data points | G19: 11 | K19: Number of data points | L19: 11 | P19: Number of data points | Q19: 11 | U19: Number of data points | V19: 11
A20: Fraction of max scan speed | B20: 0.9 | F20: Fraction of max scan speed | G20: 0.9 | K20: Fraction of max scan speed | L20: 0.9 | P20: Fraction of max scan speed | Q20: 0.9 | U20: Fraction of max scan speed | V20: 0.9
A21: Start position [mm] | B21: -10 | F21: Start position [mm] | G21: -10 | K21: Start position [mm] | L21: -10 | P21: Start position [mm] | Q21: -10 | U21: Start position [mm] | V21: -10
A22: End position [mm] | B22: 10 | F22: End position [mm] | G22: 10 | K22: End position [mm] | L22: 10 | P22: End position [mm] | Q22: 10 | U22: End position [mm] | V22: 10
A23: Scan center [mm] | B23: 74.049 | F23: Scan center [mm] | G23: 74.049 | K23: Scan center [mm] | L23: 74.049 | P23: Scan center [mm] | Q23: 74.049 | U23: Scan center [mm] | V23: 74.049
A24: Transvers X/Y [mm] | B24: -189.9 | F24: Transvers X/Y [mm] | G24: -189.9 | K24: Transvers X/Y [mm] | L24: -189.9 | P24: Transvers X/Y [mm] | Q24: -189.9 | U24: Transvers X/Y [mm] | V24: -189.9
A25: Measurement length [mm] | B25: 6 | F25: Measurement length [mm] | G25: 6 | K25: Measurement length [mm] | L25: 6 | P25: Measurement length [mm] | Q25: 6 | U25: Measurement length [mm] | V25: 6
A26: Wire length [mm] | B26: 1360 | F26: Wire length [mm] | G26: 1360 | K26: Wire length [mm] | L26: 1360 | P26: Wire length [mm] | Q26: 1360 | U26: Wire length [mm] | V26: 1360
A27: Nanovoltmeter range [V] | B27: 0.01 | F27: Nanovoltmeter range [V] | G27: 0.01 | K27: Nanovoltmeter range [V] | L27: 0.01 | P27: Nanovoltmeter range [V] | Q27: 0.01 | U27: Nanovoltmeter range [V] | V27: 0.01
A28: PS-Gap [mm] | B28: 10 | F28: PS-Gap [mm] | G28: 15 | K28: PS-Gap [mm] | L28: 20 | P28: PS-Gap [mm] | Q28: 30 | U28: PS-Gap [mm] | V28: 100
A29: PS-Temperature [C] | B29: 25.4 | F29: PS-Temperature [C] | G29: 25.6 | K29: PS-Temperature [C] | L29: 25.6 | P29: PS-Temperature [C] | Q29: 25.7 | U29: PS-Temperature [C] | V29: 25.6
A30: PS-Encoder | B30: 20.287 | F30: PS-Encoder | G30: 25.2815 | K30: PS-Encoder | L30: 30.2821 | P30: PS-Encoder | Q30: 40.2896 | U30: PS-Encoder | V30: 110.2834
A33: Monitor-Index | B33: [1,1,4] | F33: Monitor-Index | G33: [1,1,4] | K33: Monitor-Index | L33: [1,1,4] | P33: Monitor-Index | Q33: [1,1,4] | U33: Monitor-Index | V33: [1,1,4]
A36: Set current [A] | B36: Current (DDCT) [A] | C36: Y [mm] | F36: Set current [A] | G36: Current (DDCT) [A] | H36: Y [mm] | K36: Set current [A] | L36: Current (DDCT) [A] | M36: Y [mm] | P36: Set current [A] | Q36: Current (DDCT) [A] | R36: Y [mm] | U36: Set current [A] | V36: Current (DDCT) [A] | W36: Y [mm]
A37: 0 | B37: 0 | C37: 264.25 | F37: 0 | G37: 0 | H37: 264.25 | K37: 0 | L37: 0 | M37: 264.25 | P37: 0 | Q37: 0 | R37: 264.25 | U37: 0 | V37: 0 | W37: 264.25
A39: Measurement-Index | B39: [1,1,11,2] | F39: Measurement-Index | G39: [1,1,11,2] | K39: Measurement-Index | L39: [1,1,11,2] | P39: Measurement-Index | Q39: [1,1,11,2] | U39: Measurement-Index | V39: [1,1,11,2]
A41: X [mm] | B41: Field integral Ix [Tmm] | C41: Field integral Iy [Tmm] | D41: 2. Field integral Vx [Tmm] | E41: 2. Field integral Vy [Tmm] | F41: X [mm] | G41: Field integral Ix [Tmm] | H41: Field integral Iy [Tmm] | I41: 2. Field integral Vx [Tmm] | J41: 2. Field integral Vy [Tmm] | K41: X [mm] | L41: Field integral Ix [Tmm] | M41: Field integral Iy [Tmm] | N41: 2. Field integral Jx [Tmm^2] | O41: 2. Field integral Jy [Tmm^2] | P41: X [mm] | Q41: Field integral Ix [Tmm] | R41: Field integral Iy [Tmm] | S41: 2. Field integral Jx [Tmm^2] | T41: 2. Field integral Jy [Tmm^2] | U41: X [mm] | V41: Field integral Ix [Tmm] | W41: Field integral Iy [Tmm] | X41: 2. Field integral Jx [Tmm^2] | Y41: 2. Field integral Jy [Tmm^2]
A42: [0, 0, 0, 0] | F42: [0, 0, 0, 0] | K42: [0, 0, 0, 0] | P42: [0, 0, 0, 0] | U42: [0, 0, 0, 0]
A43: -10 | B43: -0.01291 | C43: -0.045183 | D43: -24.123 | E43: -65.393 | F43: -10 | G43: -0.010384 | H43: -0.041763 | I43: -19.787 | J43: -55.695 | K43: -10 | L43: -0.01204 | M43: -0.041411 | N43: -26.002 | O43: -53.172 | P43: -10 | Q43: -0.010255 | R43: -0.041974 | S43: -16.096 | T43: -50.239 | U43: -10 | V43: 0.0029258 | W43: -0.049755 | X43: 2.508 | Y43: -62.464
A44: -8 | B44: 6.2578e-05 | C44: -0.055181 | D44: 1.6581 | E44: -76.043 | F44: -8 | G44: -0.0064374 | H44: -0.042187 | I44: -11.789 | J44: -56.942 | K44: -8 | L44: -0.010122 | M44: -0.040816 | N44: -16.679 | O44: -48.42 | P44: -8 | Q44: -0.011062 | R44: -0.039643 | S44: -17.365 | T44: -47.035 | U44: -8 | V44: 0.010375 | W44: -0.047634 | X44: 16.795 | Y44: -49.605
A45: -6 | B45: 0.0027889 | C45: -0.058462 | D45: 0.16535 | E45: -79.856 | F45: -6 | G45: -0.0042242 | H45: -0.046568 | I45: -8.2898 | J45: -60.133 | K45: -6 | L45: -0.0066211 | M45: -0.0433 | N45: -15.85 | O45: -53.417 | P45: -6 | Q45: -0.0067318 | R45: -0.044127 | S45: -11.323 | T45: -54.752 | U45: -6 | V45: 0.0053709 | W45: -0.051046 | X45: 3.1058 | Y45: -57.414
A46: -4 | B46: 0.0065857 | C46: -0.056779 | D46: 0.51078 | E46: -78.538 | F46: -4 | G46: 0.0023878 | H46: -0.047949 | I46: -0.32587 | J46: -60.026 | K46: -4 | L46: -0.0030416 | M46: -0.047134 | N46: -11.896 | O46: -49.172 | P46: -4 | Q46: -0.0039949 | R46: -0.044274 | S46: -12.622 | T46: -51.213 | U46: -4 | V46: 0.0064681 | W46: -0.048557 | X46: 6.8419 | Y46: -49.937
A47: -2 | B47: 0.0031481 | C47: -0.054236 | D47: 2.6667 | E47: -73.126 | F47: -2 | G47: 0.0057757 | H47: -0.049008 | I47: 4.872 | J47: -57.835 | K47: -2 | L47: 0.0048317 | M47: -0.043984 | N47: 2.2117 | O47: -49.801 | P47: -2 | Q47: -0.0013406 | R47: -0.042818 | S47: -5.3347 | T47: -51.308 | U47: -2 | V47: 0.0063949 | W47: -0.048654 | X47: 8.0222 | Y47: -53.655
A48: 0 | B48: 0.01113 | C48: -0.056439 | D48: 14.516 | E48: -67.268 | F48: 0 | G48: 0.009423 | H48: -0.049518 | I48: 7.5495 | J48: -58.719 | K48: 0 | L48: 0.007004 | M48: -0.049282 | N48: 7.8962 | O48: -58.129 | P48: 0 | Q48: 0.0048903 | R48: -0.044859 | S48: 4.4352 | T48: -52.471 | U48: 0 | V48: 0.0081409 | W48: -0.053546 | X48: 10.983 | Y48: -58.717
A49: 2 | B49: 0.016454 | C49: -0.05435 | D49: 19.126 | E49: -63.905 | F49: 2 | G49: 0.015173 | H49: -0.046199 | I49: 15.232 | J49: -54.427 | K49: 2 | L49: 0.010167 | M49: -0.044128 | N49: 6.1302 | O49: -50.593 | P49: 2 | Q49: 0.010341 | R49: -0.041263 | S49: 8.8486 | T49: -44.585 | U49: 2 | V49: 0.0090583 | W49: -0.052696 | X49: 9.5811 | Y49: -57.606
A50: 4 | B50: 0.01874 | C50: -0.054514 | D50: 18.988 | E50: -69.046 | F50: 4 | G50: 0.015916 | H50: -0.044465 | I50: 14.532 | J50: -51.496 | K50: 4 | L50: 0.011969 | M50: -0.046837 | N50: 9.9394 | O50: -56.654 | P50: 4 | Q50: 0.015526 | R50: -0.042933 | S50: 17.353 | T50: -42.965 | U50: 4 | V50: 0.010149 | W50: -0.052108 | X50: 11.238 | Y50: -55.226
A51: 6 | B51: 0.018875 | C51: -0.050015 | D51: 21.397 | E51: -60.41 | F51: 6 | G51: 0.017587 | H51: -0.045577 | I51: 12.138 | J51: -53.417 | K51: 6 | L51: 0.016864 | M51: -0.044327 | N51: 12.287 | O51: -48.583 | P51: 6 | Q51: 0.016746 | R51: -0.039623 | S51: 17.978 | T51: -35.996 | U51: 6 | V51: 0.0088351 | W51: -0.052573 | X51: 14.497 | Y51: -56.108
A52: 8 | B52: 0.017615 | C52: -0.047356 | D52: 6.4976 | E52: -61.438 | F52: 8 | G52: 0.016838 | H52: -0.039719 | I52: 8.5642 | J52: -38.762 | K52: 8 | L52: 0.02008 | M52: -0.038484 | N52: 17.614 | O52: -41.708 | P52: 8 | Q52: 0.015458 | R52: -0.037959 | S52: 18.407 | T52: -34.925 | U52: 8 | V52: 0.01297 | W52: -0.051944 | X52: 14.46 | Y52: -53.89
A53: 10 | B53: 0.012435 | C53: -0.044155 | D53: 0.40118 | E53: -50.742 | F53: 10 | G53: 0.02394 | H53: -0.03622 | I53: 23.724 | J53: -35.999 | K53: 10 | L53: 0.020063 | M53: -0.035539 | N53: 15.388 | O53: -33.139 | P53: 10 | Q53: 0.020036 | R53: -0.039324 | S53: 22.183 | T53: -34.639 | U53: 10 | V53: 0.015261 | W53: -0.050753 | X53: 21.162 | Y53: -44.171
